bitfinex/quotes_SOLUSD_20251128
["timestamp","ask_amount","ask_price","bid_price","bid_amount"]
[1764352796671,3.26,137.17,137.15,0.69]
[1764352796858,16.308864,137.2,137.16,10.22493909]
[1764352797062,16.308864,137.2,137.17,10.22493909]
[1764352797258,75.0,137.29,137.2,8.80994492]
[1764352797460,85.47159184,137.4,137.24,8.80994492]
[1764352797461,13.48493909,137.28,137.24,8.80994492]
[1764352797803,13.48493909,137.28,137.23,10.22493909]
[1764352797804,3.26,137.28,137.23,10.22493909]
[1764352797999,16.308864,137.26,137.24,0.69]
[1764352798591,3.26,137.28,137.16,3.26]
[1764352798760,10.22493909,137.26,137.21,8.80994492]
[1764352798963,3.26,137.25,137.21,8.80994492]
[1764352799176,0.28432314,137.24,137.22,0.69]
[1764352799375,0.28432314,137.24,137.17,0.69]
[1764352799568,75.0,137.28,137.19,16.308864]
[1764352799894,0.69,137.46,137.36,16.308864]
[1764352800059,0.69,137.44,137.34,16.308864]
[1764352800263,3.97,137.44,137.3,19.31920715]
[1764352800571,3.97,137.44,137.29,3.28]
[1764352800572,10.22493909,137.39,137.35,8.80994492]
[1764352800759,10.22493909,137.41,137.35,8.80994492]
[1764352801074,0.2,137.39,137.34,26.53380309]
[1764352801378,0.2,137.39,137.35,8.80994492]
[1764352801604,0.2,137.39,137.37,10.22493909]
[1764352801759,0.2,137.39,137.38,10.22493909]
[1764352801958,0.2,137.39,137.36,8.80994492]
[1764352802274,0.2,137.39,137.37,10.22493909]
[1764352802587,3.5,137.39,137.35,10.22493909]
[1764352802780,3.5,137.39,137.36,10.22493909]
[1764352802997,0.2,137.39,137.38,19.03488401]
[1764352803279,0.2,137.39,137.35,3.3]
[1764352803280,3.3,137.5,137.47,10.22493909]
[1764352803464,7.27166957,137.52,137.45,8.80994492]
[1764352803672,3.99,137.51,137.41,7.27720158]
[1764352803881,16.308864,137.49,137.43,10.22493909]
[1764352804077,16.308864,137.49,137.38,3.3]
[1764352804078,10.22493909,137.45,137.39,7.27811651]
[1764352804275,0.28432314,137.43,137.39,10.22493909]
[1764352804459,0.28432314,137.43,137.38,10.22493909]
[1764352804658,13.52493909,137.42,137.37,10.22493909]
[1764352804859,10.50926223,137.41,137.36,19.03488401]
[1764352805188,10.50926223,137.41,137.27,1.99999999]
[1764352805189,0.28432314,137.36,137.27,7.28491294]
[1764352805358,16.308864,137.38,137.34,10.22493909]
[1764352805554,16.308864,137.38,137.29,10.22493909]
[1764352805555,0.28432314,137.34,137.29,10.22493909]
[1764352805758,3.3,137.34,137.3,10.22493909]
[1764352805975,10.22493909,137.31,137.22,36.43726977]
[1764352806181,1.00432314,137.33,137.22,36.43726977]
[1764352806382,10.50926223,137.31,137.25,16.308864]
[1764352806589,10.22493909,137.27,137.22,10.22493909]
[1764352806764,10.22493909,137.28,137.22,10.22493909]
[1764352807068,3.3,137.31,137.27,10.22493909]
[1764352807775,13.52493909,137.31,137.27,8.80994492]
[1764352807973,13.52493909,137.31,137.25,8.80994492]
[1764352808193,0.28432314,137.32,137.26,10.22493909]
[1764352808495,10.22493909,137.27,137.15,1.99999999]
[1764352808678,10.22493909,137.23,137.18,10.22493909]
[1764352808994,13.52493909,137.24,137.13,3.3]
[1764352809173,3.3,137.24,137.2,10.22493909]
[1764352809485,3.3,137.24,137.22,10.22493909]
[1764352809704,0.28432314,137.26,137.23,10.22493909]
[1764352809857,0.28432314,137.26,137.19,8.80994492]
[1764352809858,3.58432314,137.26,137.22,10.22493909]
[1764352810057,0.28432314,137.23,137.19,10.22493909]
[1764352810285,3.3,137.22,137.17,10.22493909]
[1764352810590,3.3,137.22,137.14,7.29181857]
[1764352810591,10.50926223,137.2,137.14,10.22493909]
[1764352810791,10.22493909,137.15,137.07,7.29554242]
[1764352810989,10.22493909,137.15,137.09,10.22493909]
[1764352810990,3.3,137.14,137.09,10.22493909]
[1764352811167,3.3,137.16,137.11,10.22493909]
[1764352811364,13.52493909,137.16,137.12,8.80994492]
[1764352811565,10.22493909,137.15,137.07,18.23885605]
[1764352811803,10.22493909,137.13,137.06,7.29605274]
[1764352812112,10.22493909,137.13,137.08,10.22493909]
[1764352812265,3.3,137.13,137.09,10.22493909]
[1764352812598,16.308864,137.15,137.1,19.03488401]
[1764352812768,3.58432314,137.2,137.15,8.80994492]
[1764352812966,3.58432314,137.2,137.13,8.80994492]
[1764352812967,3.3,137.2,137.12,8.80994492]
[1764352813169,10.22493909,137.16,137.12,8.80994492]
[1764352813480,13.52493909,137.16,137.12,8.80994492]
[1764352813680,10.22493909,137.14,137.05,3.3]
[1764352813991,10.22493909,137.11,137.08,8.80994492]
[1764352814188,10.22493909,137.12,137.08,8.80994492]
[1764352814435,13.52493909,137.12,137.08,8.80994492]
[1764352814582,10.22493909,137.11,137.06,19.03488401]
[1764352814782,13.52493909,137.12,137.06,8.80994492]
[1764352814972,13.52493909,137.12,137.06,19.03488401]
[1764352815295,3.3,137.12,137.08,8.80994492]
[1764352815504,13.52493909,137.12,137.08,8.80994492]
[1764352815714,16.308864,137.14,137.08,8.80994492]
[1764352815867,10.22493909,137.15,137.1,8.80994492]
[1764352816072,13.52493909,137.16,137.08,8.80994492]
[1764352816276,10.22493909,137.13,137.09,8.80994492]
[1764352816578,10.22493909,137.14,137.08,8.80994492]
[1764352816816,4.02,137.16,137.08,8.80994492]
[1764352816817,19.608864,137.16,137.1,10.22493909]
[1764352817093,10.22493909,137.15,137.1,10.22493909]
[1764352817270,0.28432314,137.14,137.06,10.22493909]
[1764352817470,10.22493909,137.1,137.04,10.22493909]
[1764352817684,0.72,137.17,137.09,10.22493909]
[1764352817888,17.31318714,137.17,137.11,10.22493909]
[1764352818098,22.63460608,137.23,137.14,8.80994492]
[1764352818299,10.22493909,137.21,137.16,19.03488401]
[1764352818509,3.3,137.2,137.16,19.03488401]
[1764352818683,3.3,137.23,137.19,10.22493909]
[1764352818876,3.3,137.23,137.18,8.80994492]
[1764352818877,16.308864,137.25,137.21,10.22493909]
[1764352819080,10.22493909,137.23,137.16,3.3]
[1764352819284,3.3,137.22,137.17,10.22493909]
[1764352819519,16.308864,137.26,137.22,8.80994492]
[1764352819681,10.94493909,137.25,137.19,26.53380309]
[1764352819880,0.72,137.25,137.2,8.80994492]
[1764352820082,0.72,137.28,137.24,8.80994492]
[1764352820387,3.3,137.28,137.24,19.03488401]
[1764352820590,3.3,137.3,137.25,19.03488401]
[1764352820794,3.3,137.33,137.28,10.22493909]
[1764352820992,10.22493909,137.3,137.22,16.308864]
[1764352821183,10.22493909,137.27,137.2,8.80994492]
[1764352821383,0.28432314,137.29,137.23,8.80994492]
[1764352821695,13.52493909,137.28,137.23,19.03488401]
[1764352822201,3.3,137.28,137.25,8.80994492]
[1764352822399,3.3,137.3,137.26,10.22493909]
[1764352822705,3.3,137.3,137.25,19.03488401]
[1764352822897,3.3,137.3,137.26,10.22493909]
[1764352823092,3.3,137.3,137.25,19.03488401]
[1764352823289,75.0,137.37,137.29,10.22493909]
[1764352823290,8.00062354,137.36,137.29,10.22493909]
[1764352823488,8.00062354,137.36,137.27,7.28491294]
[1764352823489,10.22493909,137.33,137.27,7.28491294]
[1764352823805,10.22493909,137.34,137.29,8.80994492]
[1764352824001,3.3,137.35,137.3,10.22493909]
[1764352824590,10.94493909,137.34,137.3,8.80994492]
[1764352824981,10.22493909,137.33,137.27,35.72213439]
[1764352825182,10.22493909,137.33,137.28,8.80994492]
[1764352825403,10.22493909,137.36,137.28,8.80994492]
[1764352825610,14.24493909,137.37,137.31,8.80994492]
[1764352825810,3.3,137.38,137.33,8.80994492]
[1764352826012,3.3,137.38,137.33,19.03488401]
[1764352826321,10.22493909,137.41,137.36,10.22493909]
[1764352826612,0.72,137.41,137.33,8.80994492]
[1764352826789,3.3,137.42,137.39,5.88573821]
[1764352826993,5.88573821,137.4,137.32,3.3]
[1764352827184,5.88573821,137.4,137.35,8.80994492]
[1764352827392,5.88573821,137.39,137.35,8.80994492]
[1764352827591,5.88573821,137.37,137.35,8.80994492]
[1764352827791,5.88573821,137.38,137.35,8.80994492]
[1764352828207,5.88573821,137.39,137.35,8.80994492]
[1764352828511,6.89006135,137.41,137.36,8.80994492]
[1764352828719,5.88573821,137.37,137.29,18.20856955]
[1764352829013,5.88573821,137.3,137.24,28.80276887]
[1764352829216,5.88573821,137.27,137.24,7.28650539]
[1764352829394,5.88573821,137.27,137.23,7.2869124]
[1764352829588,5.88573821,137.26,137.23,7.2869124]
[1764352829810,5.88573821,137.26,137.22,7.28742758]
[1764352830315,5.88573821,137.26,137.21,29.48262364]
[1764352830488,5.88573821,137.27,137.21,13.17375964]
[1764352830687,5.88573821,137.27,137.2,18.22050362]
[1764352830688,5.88573821,137.26,137.2,5.88573821]
[1764352830983,9.90573821,137.28,137.22,5.88573821]
[1764352831187,5.88573821,137.27,137.22,5.88573821]
[1764352831598,0.28432314,137.28,137.22,5.88573821]
[1764352831804,5.88573821,137.27,137.22,5.88573821]
[1764352832201,5.88573821,137.23,137.14,18.22912938]
[1764352832424,5.88573821,137.2,137.12,14.39850407]
[1764352832593,5.88573821,137.2,137.14,5.88573821]
[1764352832797,5.88573821,137.2,137.15,5.88573821]
[1764352833406,6.60573821,137.19,137.12,32.63070943]
[1764352833711,6.60573821,137.19,137.14,5.88573821]
[1764352833921,1.00432314,137.19,137.14,5.88573821]
[1764352834455,6.89006135,137.19,137.14,13.17714229]
[1764352834919,0.72,137.19,137.14,13.17714229]
[1764352835133,6.60573821,137.19,137.14,7.29140408]
[1764352835296,5.88573821,137.18,137.14,7.29140408]
[1764352835624,5.88573821,137.18,137.14,8.80994492]
[1764352835625,6.54573821,137.18,137.14,8.80994492]
[1764352835922,0.66,137.18,137.14,8.80994492]
[1764352836416,9.18573821,137.19,137.15,7.29128691]
[1764352836620,22.47892535,137.21,137.16,8.80994492]
[1764352836804,3.3,137.2,137.16,8.80994492]
[1764352837221,9.84573821,137.2,137.16,8.80994492]
[1764352837398,5.88573821,137.18,137.13,7.29200223]
[1764352837722,5.88573821,137.17,137.14,16.308864]
[1764352837890,5.88573821,137.18,137.14,16.308864]
[1764352838290,6.54573821,137.18,137.14,16.308864]
[1764352838514,6.54573821,137.18,137.11,24.1188604]
[1764352838718,6.54573821,137.18,137.12,50.64389642]
[1764352838892,6.54573821,137.18,137.12,32.41169106]
[1764352839089,5.88573821,137.16,137.1,3.80977265]
[1764352839293,5.88573821,137.15,137.11,8.80994492]
[1764352839495,5.88573821,137.15,137.1,8.80994492]
[1764352839707,6.54573821,137.14,137.1,8.80994492]
[1764352839909,6.54573821,137.14,137.09,8.90994492]
[1764352840097,0.66,137.14,137.12,16.308864]
[1764352840303,0.66,137.14,137.11,8.80994492]
[1764352840509,0.66,137.14,137.1,7.2936101]
[1764352841224,6.54573821,137.14,137.11,8.80994492]
[1764352841722,3.3,137.15,137.1,23.6024741]
[1764352841723,6.54573821,137.13,137.1,16.308864]
[1764352841905,3.3,137.15,137.1,23.60270296]
[1764352842103,0.66,137.14,137.1,23.60270296]
[1764352842304,5.88573821,137.11,137.09,0.1]
[1764352842619,5.88573821,137.1,137.09,0.1]
[1764352842823,3.3,137.11,137.09,0.1]
[1764352843030,6.02789978,137.1,137.09,0.1]
[1764352843323,6.54573821,137.1,137.09,0.1]
[1764352843702,0.94432314,137.1,137.09,0.1]
[1764352843901,6.83006135,137.1,137.09,0.1]
[1764352844216,0.28432314,137.09,137.03,82.33471074]
[1764352844410,0.28432314,137.09,137.03,89.6323256]
[1764352844411,5.88573821,137.07,137.03,89.6323256]
[1764352844641,6.54573821,137.09,137.03,95.51806381]
[1764352844843,5.88573821,137.07,137.03,89.6323256]
[1764352845345,0.66,137.07,137.03,89.6323256]
[1764352845848,6.54573821,137.07,137.03,89.6323256]
[1764352846030,6.54573821,137.07,137.03,82.33471074]
[1764352846031,5.88573821,137.06,137.03,82.33471074]
[1764352846549,6.54573821,137.06,137.03,82.33471074]
[1764352846732,0.66,137.06,137.03,82.33471074]
[1764352847333,3.96,137.06,137.03,82.33471074]
[1764352847532,104.1,137.08,137.05,5.88573821]
[1764352847737,104.1,137.08,137.04,8.80994492]
[1764352847923,104.1,137.08,137.03,98.55216315]
[1764352847924,104.1,137.08,137.05,5.88573821]
[1764352848330,104.1,137.08,137.03,107.98639833]
[1764352848648,104.1,137.08,137.04,5.88573821]
[1764352848848,104.76,137.08,137.04,5.88573821]
[1764352849059,104.1,137.08,137.05,5.88573821]
[1764352849437,104.1,137.08,137.06,5.88573821]
[1764352849652,3.3,137.09,137.06,5.88573821]
[1764352850160,3.96,137.09,137.05,13.18217405]
[1764352850367,0.66,137.08,137.04,13.18279224]
[1764352850647,3.96,137.09,137.04,5.88573821]
[1764352850854,3.96,137.09,137.04,13.18262187]
[1764352851148,5.88573821,137.1,137.04,13.18262187]
[1764352851363,3.96,137.09,137.04,13.18262187]
[1764352851654,5.88573821,137.06,137.03,82.33471074]
[1764352851827,3.3,137.05,137.03,82.33471074]
[1764352852022,3.96,137.05,137.03,82.33471074]
[1764352854456,0.66,137.04,137.03,82.33471074]
[1764352854654,3.96,137.05,137.03,82.33471074]
[1764352854856,0.66,137.04,137.03,82.33471074]
[1764352855553,0.66,137.06,137.03,82.33471074]
[1764352855753,3.3,137.05,137.03,82.33471074]
[1764352856546,0.66,137.1,137.04,5.88573821]
[1764352856732,3.3,137.09,137.05,5.88573821]
[1764352856930,9.18573821,137.09,137.03,82.33471074]
[1764352857142,0.66,137.08,137.03,88.22044895]
[1764352857348,17.25318714,137.08,137.03,82.33471074]
[1764352857657,5.88573821,137.07,137.03,82.33471074]
[1764352857859,6.54573821,137.07,137.03,82.33471074]
[1764352858157,0.66,137.06,137.03,82.33471074]
[1764352858455,3.3,137.05,137.03,82.33471074]
[1764352858837,3.96,137.05,137.03,82.33471074]
[1764352859049,0.66,137.04,137.03,82.33471074]
[1764352859237,6.83006135,137.04,137.03,82.33471074]
[1764352859439,6.83006135,137.04,137.03,80.11471074]
[1764352859647,17.42720087,137.04,137.03,80.11471074]
[1764352859860,26.23714579,137.04,137.03,80.11471074]
[1764352860062,16.308864,136.96,136.91,0.1]
[1764352860355,16.308864,136.96,136.9,83.64325069]
[1764352860356,9.09426806,136.91,136.9,83.17325069]
[1764352860529,84.47006135,136.91,136.9,83.17325069]
[1764352860736,3.3,136.91,136.9,83.17325069]
[1764352861030,9.20573821,136.91,136.9,83.17325069]
[1764352861460,9.49006135,136.91,136.9,83.17325069]
[1764352861659,100.60407463,136.91,136.9,19.55829456]
[1764352861863,100.60407463,136.91,136.76,10.78277547]
[1764352861864,16.308864,136.82,136.76,10.78277547]
[1764352862177,3.32,136.84,136.78,0.71]
[1764352862332,8.70573821,136.84,136.79,5.88573821]
[1764352862530,5.88573821,136.83,136.78,0.71]
[1764352862763,5.88573821,136.79,136.77,84.95179063]
[1764352863069,5.88573821,136.79,136.76,3.47097675]
[1764352863070,75.28432314,136.77,136.76,3.47097675]
[1764352863362,5.88573821,136.71,136.66,13.91305463]
[1764352863560,16.308864,136.72,136.66,13.91305463]
[1764352863561,3.32,136.7,136.66,13.91305463]
[1764352863738,10.63529415,136.7,136.64,86.26033058]
[1764352863941,10.63529415,136.7,136.65,0.71]
[1764352863942,32.82993107,136.7,136.65,0.71]
[1764352864163,5.88573821,136.7,136.64,86.26033058]
[1764352864370,3.32,136.69,136.66,5.88573821]
[1764352864656,3.32,136.69,136.65,0.71]
[1764352864840,0.28432314,136.72,136.68,5.88573821]
[1764352865040,3.32,136.71,136.67,5.88573821]
[1764352865257,3.32,136.71,136.65,0.69]
[1764352865678,0.28432314,136.7,136.65,0.69]
[1764352865832,0.28432314,136.7,136.64,86.26033058]
[1764352865833,75.0,136.68,136.64,86.26033058]
[1764352866032,16.308864,136.65,136.64,86.26033058]
[1764352866933,16.59318714,136.65,136.64,86.26033058]
[1764352867140,3.32,136.67,136.64,86.26033058]
[1764352867358,3.32,136.67,136.64,86.95033058]
[1764352867560,3.32,136.67,136.65,6.57573821]
[1764352867865,3.32,136.67,136.65,0.69]
[1764352868081,3.32,136.67,136.64,86.26033058]
[1764352868643,0.28432314,136.66,136.64,86.26033058]
[1764352868844,101.94600376,136.67,136.64,86.26033058]
[1764352868845,9.51006135,136.65,136.64,86.26033058]
[1764352869043,3.34,136.65,136.64,86.26033058]
[1764352869371,85.94228874,136.65,136.64,86.26033058]
[1764352869670,91.82802695,136.65,136.64,86.26033058]
[1764352869848,100.63797187,136.65,136.64,86.26033058]
[1764352871759,94.75223366,136.65,136.64,86.26033058]
[1764352871949,100.63797187,136.65,136.64,86.26033058]
[1764352872151,100.63797187,136.65,136.53,0.69]
[1764352872152,75.0,136.62,136.53,0.69]
[1764352872354,5.88573821,136.58,136.53,6.57573821]
[1764352872565,3.34,136.57,136.53,8.01411526]
[1764352872769,7.3179656,136.65,136.54,9.49994492]
[1764352872770,3.34,136.6,136.54,9.49994492]
[1764352872980,3.34,136.59,136.54,0.69]
[1764352873151,3.34,136.59,136.55,0.69]
[1764352873648,3.34,136.59,136.55,6.57573821]
[1764352873953,3.34,136.59,136.57,5.88573821]
[1764352874150,3.34,136.59,136.56,0.69]
[1764352874788,5.88573821,136.57,136.52,0.1]
[1764352874967,6.17006135,136.53,136.52,0.1]
[1764352875161,16.308864,136.55,136.52,5.98573821]
[1764352875378,3.34,136.54,136.52,5.98573821]
[1764352875578,5.88573821,136.61,136.53,6.59573821]
[1764352875763,3.34,136.6,136.53,0.71]
[1764352875966,19.648864,136.6,136.57,5.88573821]
[1764352876288,3.34,136.6,136.55,5.88573821]
[1764352876582,3.34,136.6,136.57,6.59573821]
[1764352876787,3.34,136.6,136.57,0.71]
[1764352876965,3.34,136.6,136.58,6.59573821]
[1764352877363,35.85353915,136.67,136.59,6.59573821]
[1764352877364,17.56,136.67,136.59,6.59573821]
[1764352877678,5.88573821,136.71,136.66,5.88573821]
[1764352877884,5.88573821,136.73,136.68,5.88573821]
[1764352878058,3.34,136.7,136.69,5.88573821]
[1764352878478,3.34,136.7,136.69,6.59573821]
[1764352878694,3.34,136.73,136.69,6.59573821]
[1764352878989,3.34,136.73,136.7,6.59573821]
[1764352879294,3.34,136.73,136.71,5.88573821]
[1764352879464,3.34,136.73,136.72,6.59573821]
[1764352880783,7.3126553,136.75,136.72,6.59573821]
[1764352880960,18.27729089,136.79,136.74,5.88573821]
[1764352880961,3.34,136.78,136.74,5.88573821]
[1764352881164,10.65119622,136.78,136.74,6.59573821]
[1764352881367,10.65119622,136.78,136.68,3.34]
[1764352881368,3.34,136.78,136.75,6.59573821]
[1764352881562,3.34,136.78,136.69,8.80994492]
[1764352881563,3.34,136.78,136.76,5.88573821]
[1764352881762,3.34,136.78,136.76,6.59573821]
[1764352882199,5.88573821,136.77,136.7,6.59573821]
[1764352882384,5.88573821,136.76,136.7,6.59573821]
[1764352882690,5.88573821,136.75,136.7,6.59573821]
[1764352882903,3.34,136.74,136.71,6.59573821]
[1764352883192,3.34,136.74,136.72,5.88573821]
[1764352883490,10.65317303,136.74,136.72,6.59573821]
[1764352883673,10.65317303,136.74,136.7,5.88573821]
[1764352883871,10.65317303,136.74,136.7,6.59573821]
[1764352884378,16.53891124,136.74,136.65,7.31752167]
[1764352884570,5.88573821,136.72,136.67,6.59573821]
[1764352884765,6.02789978,136.73,136.68,5.88573821]
[1764352885070,10.65317303,136.74,136.7,5.88573821]
[1764352885283,3.34,136.75,136.72,5.88573821]
[1764352885474,3.34,136.75,136.73,5.88573821]
[1764352885889,3.34,136.75,136.74,0.71]
[1764352886088,3.34,136.75,136.74,6.59573821]
[1764352886275,7.31094486,136.79,136.74,6.59573821]
[1764352886481,3.34,136.77,136.75,6.59573821]
[1764352886675,3.34,136.77,136.76,5.88573821]
[1764352886881,3.34,136.77,136.76,6.59573821]
[1764352887093,18.2756214,136.8,136.76,6.59573821]
[1764352887392,3.34,136.8,136.77,0.71]
[1764352887589,9.22573821,136.8,136.75,5.88573821]
[1764352887787,3.34,136.8,136.76,5.88573821]
[1764352888098,3.34,136.8,136.78,5.88573821]
[1764352888793,3.34,136.8,136.78,11.04396831]
[1764352888977,3.34,136.8,136.79,11.04396831]
[1764352889178,7.30871296,136.83,136.79,11.04396831]
[1764352889179,3.34,136.84,136.79,11.04396831]
[1764352889393,3.34,136.84,136.82,10.33396831]
[1764352889612,3.34,136.84,136.81,10.33396831]
[1764352889979,3.34,136.84,136.81,11.04396831]
[1764352890180,3.34,136.84,136.82,10.33396831]
[1764352890387,0.2,136.91,136.83,10.33396831]
[1764352890588,10.33396831,136.89,136.84,10.33396831]
[1764352890886,3.34,136.9,136.84,10.33396831]
[1764352890887,13.67396831,136.9,136.84,10.33396831]
[1764352891301,16.308864,136.88,136.83,11.04396831]
[1764352891478,10.33396831,136.88,136.83,0.71]
[1764352891679,10.33396831,136.86,136.81,11.04396831]
[1764352891883,3.34,136.85,136.81,11.04396831]
[1764352892086,3.34,136.85,136.82,10.33396831]
[1764352892306,3.34,136.85,136.82,11.04396831]
[1764352892610,3.34,136.85,136.8,10.33396831]
[1764352892815,26.64283231,136.81,136.74,0.71]
[1764352892994,3.62432314,136.8,136.75,0.71]
[1764352893197,13.95829145,136.8,136.75,0.71]
[1764352893511,10.33396831,136.78,136.75,0.71]
[1764352893712,10.33396831,136.78,136.72,10.33396831]
[1764352893889,3.62432314,136.8,136.75,0.71]
[1764352893890,13.67396831,136.8,136.75,0.71]
[1764352894087,20.98408926,136.8,136.75,0.71]
[1764352894288,10.33396831,136.79,136.75,0.71]
[1764352894595,10.33396831,136.78,136.75,0.71]
[1764352894796,3.34,136.77,136.75,0.71]
[1764352894998,13.67396831,136.77,136.72,0.68]
[1764352895199,13.67396831,136.77,136.73,0.68]
[1764352895401,10.33396831,136.76,136.73,0.68]
[1764352895606,20.98593158,136.77,136.73,0.68]
[1764352896011,10.33396831,136.74,136.69,0.68]
[1764352896318,3.34,136.73,136.69,0.68]
[1764352896700,10.33396831,136.76,136.7,10.33396831]
[1764352897014,13.67396831,136.75,136.71,0.68]
[1764352897219,10.33396831,136.74,136.71,0.68]
[1764352897393,13.67396831,136.75,136.71,0.68]
[1764352897590,20.98681491,136.75,136.71,0.68]
[1764352897790,13.67396831,136.75,136.71,0.68]
[1764352898001,3.34,136.75,136.71,11.01396831]
[1764352898204,10.33396831,136.81,136.74,10.33396831]
[1764352898408,3.34,136.79,136.74,10.33396831]
[1764352898627,75.72,136.84,136.78,10.33396831]
[1764352898628,8.02798292,136.84,136.78,10.33396831]
[1764352898803,8.02798292,136.84,136.75,0.68]
[1764352898804,10.33396831,136.88,136.81,10.33396831]
[1764352899136,10.33396831,136.84,136.76,0.68]
[1764352899424,4.06,136.87,136.77,0.68]
[1764352899425,13.67396831,136.83,136.77,0.68]
[1764352899629,10.64919501,136.82,136.77,0.68]
[1764352899797,10.64919501,136.82,136.77,11.01396831]
[1764352899998,3.34,136.82,136.77,11.01396831]
[1764352900198,3.34,136.82,136.78,11.01396831]
[1764352900422,3.34,136.82,136.78,0.68]
[1764352900600,3.34,136.82,136.79,0.68]
[1764352900916,3.34,136.82,136.8,10.33396831]
[1764352901423,3.34,136.82,136.81,11.01396831]
[1764352901712,7.30743468,136.85,136.81,11.01396831]
[1764352901713,7.30566919,136.88,136.81,11.01396831]
[1764352901913,13.67396831,136.87,136.81,11.01396831]
[1764352902117,3.34,136.87,136.82,0.68]
[1764352902299,3.34,136.89,136.85,10.33396831]
[1764352902711,3.34,136.89,136.86,0.68]
[1764352904015,20.97933537,136.89,136.83,18.32183944]
[1764352904405,3.34,136.89,136.85,10.33396831]
[1764352904713,3.34,136.89,136.84,11.01396831]
[1764352904911,3.34,136.89,136.84,0.68]
[1764352905224,3.34,136.89,136.85,11.01396831]
[1764352905518,3.34,136.89,136.85,0.68]
[1764352905717,3.34,136.89,136.86,0.68]
[1764352905922,10.33396831,136.88,136.84,0.68]
[1764352906092,13.67396831,136.89,136.84,0.68]
[1764352906723,3.34,136.89,136.84,11.01396831]
[1764352907109,7.5043802,136.91,136.86,10.33396831]
[1764352907416,0.2,136.91,136.87,10.33396831]
[1764352907820,0.2,136.91,136.88,0.68]
[1764352908018,0.2,136.91,136.88,11.01396831]
[1764352908192,0.2,136.91,136.89,0.68]
[1764352908398,0.2,136.91,136.89,11.01396831]
[1764352908924,0.2,136.91,136.9,11.01396831]
[1764352909099,0.2,136.91,136.9,0.68]
[1764352909618,0.2,136.91,136.9,11.01396831]
[1764352909823,0.2,136.91,136.9,27.12851512]
[1764352909995,7.29985929,136.99,136.91,8.80994492]
[1764352910196,3.34,136.99,136.95,10.33396831]
[1764352910396,3.34,136.99,136.94,10.33396831]
[1764352910727,3.34,136.99,136.96,10.33396831]
[1764352911029,10.33396831,137.05,136.98,10.33396831]
[1764352911200,3.34,137.04,137.0,10.33396831]
[1764352911399,3.34,137.04,136.96,9.48994492]
[1764352911622,3.34,137.04,137.0,10.33396831]
[1764352911827,3.34,137.04,136.99,7.29947625]
[1764352912120,3.34,137.04,136.99,11.01396831]
[1764352912329,3.34,137.04,137.0,0.68]
[1764352912499,3.34,137.04,137.0,11.01396831]
[1764352912699,3.34,137.04,136.99,10.33396831]
[1764352913009,3.34,137.04,137.01,0.68]
[1764352913550,11.05396831,137.03,136.96,0.68]
[1764352913698,10.33396831,137.02,136.96,0.68]
[1764352913898,13.67396831,137.04,136.98,10.33396831]
[1764352914216,3.34,137.04,136.99,10.33396831]
[1764352914631,3.34,137.04,137.0,0.68]
[1764352915224,3.34,137.04,137.0,11.01396831]
[1764352915600,3.34,137.04,137.01,0.68]
[1764352916127,3.34,137.04,137.01,7.97861721]
[1764352916315,3.34,137.04,137.01,18.31258552]
[1764352916508,3.34,137.04,137.01,0.68]
[1764352917227,3.34,137.04,137.01,11.01396831]
[1764352917719,3.34,137.04,137.0,7.29919874]
[1764352917720,0.2,137.05,137.03,10.33396831]
[1764352918125,0.2,137.05,137.04,0.68]
[1764352918626,0.2,137.05,137.01,18.24684329]
[1764352918627,0.2,137.05,137.0,0.68]
[1764352918811,10.53396831,137.05,136.99,10.33396831]
[1764352919015,0.2,137.05,137.01,11.01396831]
[1764352919522,0.2,137.05,137.02,11.01396831]
[1764352919523,0.153819,137.05,137.02,11.01396831]
[1764352919750,0.153819,137.05,137.03,10.33396831]
[1764352920050,0.153819,137.05,137.03,11.01396831]
[1764352920267,0.153819,137.05,137.04,0.68]
[1764352920567,0.153819,137.05,137.04,11.01396831]
[1764352920753,0.153819,137.05,137.04,19.82391323]
[1764352921342,0.153819,137.05,137.02,26.22353829]